bitfinex-derivatives/quotes_BTCF0:USTF0_20240902
["timestamp","ask_amount","ask_price","bid_price","bid_amount"]
[1725320822848,0.10759,59183.0,59181.0,0.05059882]
[1725320824261,0.10959,59183.0,59181.0,0.05059882]
[1725320824867,0.11259,59183.0,59181.0,0.05059882]
[1725320825658,0.11159,59183.0,59181.0,0.05059882]
[1725320827361,0.11159,59183.0,59182.0,0.05059882]
[1725320828560,0.47439,59183.0,59182.0,0.05059882]
[1725320828955,0.47439,59183.0,59180.0,0.25638144]
[1725320829158,0.47439,59183.0,59180.0,0.1888456]
[1725320829365,0.47439,59183.0,59180.0,0.2564386]
[1725320829665,0.47439,59183.0,59182.0,0.05060303]
[1725320830256,0.47239,59183.0,59182.0,0.05060303]
[1725320830860,0.47039,59183.0,59182.0,0.05060303]
[1725320831559,0.47239,59183.0,59182.0,0.05060303]
[1725320831771,0.47439,59183.0,59182.0,0.05060303]
[1725320834169,0.47439,59183.0,59180.0,0.22917444]
[1725320835268,0.47239,59183.0,59180.0,0.22917444]
[1725320835454,0.47039,59183.0,59180.0,0.23017444]
[1725320836269,0.47039,59183.0,59181.0,0.06753584]
[1725320836480,0.47039,59183.0,59180.0,0.23017444]
[1725320836766,0.47039,59183.0,59181.0,0.06753584]
[1725320837361,0.4028,59183.0,59182.0,0.067591]
[1725320837567,0.042,59183.0,59182.0,0.13512684]
[1725320837759,0.042,59183.0,59182.0,0.067591]
[1725320837964,0.04,59183.0,59182.0,0.187591]
[1725320838166,0.004,59183.0,59182.0,0.187591]
[1725320838667,0.005,59183.0,59182.0,0.187591]
[1725320838866,0.002,59183.0,59182.0,0.187591]
[1725320839061,0.006,59183.0,59182.0,0.067591]
[1725320839467,0.006,59183.0,59182.0,0.187591]
[1725320840371,0.006,59183.0,59182.0,0.067591]
[1725320841271,0.006,59183.0,59182.0,0.37675597]
[1725320842158,0.006,59183.0,59182.0,0.2480246]
[1725320842360,0.006,59183.0,59182.0,1.2276276]
[1725320842573,0.006,59183.0,59182.0,1.92899099]
[1725320842873,0.006,59183.0,59182.0,1.8276276]
[1725320843074,0.006,59183.0,59182.0,1.9842905]
[1725320843670,0.0039,59191.0,59190.0,0.067582]
[1725320843868,0.00025344,59192.0,59191.0,0.067581]
[1725320845476,0.00225344,59192.0,59191.0,0.067581]
[1725320846080,0.00625344,59192.0,59191.0,0.067581]
[1725320847868,0.00625344,59192.0,59191.0,0.13506095]
[1725320848276,0.00625344,59192.0,59191.0,0.067581]
[1725320848476,0.0039,59198.0,59197.0,0.067574]
[1725320848678,0.0039,59205.0,59201.0,0.067569]
[1725320848981,0.0472,59206.0,59201.0,0.067569]
[1725320848982,0.0472,59206.0,59201.0,0.157569]
[1725320850071,0.09,59202.0,59197.0,0.11814548]
[1725320850272,0.09,59202.0,59194.0,0.36558]
[1725320850273,0.067574,59197.0,59194.0,0.05057248]
[1725320850475,0.049,59196.0,59192.0,0.11815148]
[1725320850672,0.0973,59196.0,59192.0,0.11815148]
[1725320851281,0.0963,59196.0,59192.0,0.11815148]
[1725320851682,0.0993,59196.0,59192.0,0.11815148]
[1725320851980,0.1033,59196.0,59192.0,0.11815148]
[1725320852480,0.2133,59196.0,59192.0,0.11815148]
[1725320853575,0.2133,59196.0,59192.0,0.067579]
[1725320854288,0.2133,59196.0,59193.0,0.05057248]
[1725320854581,0.280876,59196.0,59193.0,0.05057248]
[1725320855179,0.280876,59196.0,59192.0,0.11815148]
[1725320855180,0.3608,59195.0,59192.0,0.11815148]
[1725320855376,0.4708,59195.0,59193.0,0.09]
[1725320855777,0.4708,59195.0,59193.0,0.14057248]
[1725320856585,0.541376,59195.0,59193.0,0.14057248]
[1725320856789,0.541376,59195.0,59193.0,0.09]
[1725320857084,0.541376,59195.0,59193.0,0.091]
[1725320858092,0.548376,59195.0,59193.0,0.091]
[1725320860880,0.548376,59195.0,59193.0,0.14157248]
[1725320863188,0.548376,59195.0,59193.0,0.20915048]
[1725320863384,0.548376,59195.0,59194.0,0.05057248]
[1725320864693,0.550376,59195.0,59194.0,0.05157248]
[1725320866391,0.550376,59195.0,59194.0,0.001]
[1725320866890,0.4828,59195.0,59194.0,0.001]
[1725320870990,0.4828,59195.0,59194.0,0.0014]
[1725320871497,0.4828,59195.0,59194.0,0.06883018]
[1725320872693,0.4828,59195.0,59194.0,0.0014]
[1725320873894,0.4828,59195.0,59194.0,0.0914]
[1725320874590,0.4828,59195.0,59194.0,0.158977]
[1725320879798,0.4828,59195.0,59194.0,0.24338669]
[1725320879991,0.4828,59195.0,59194.0,0.37209004]
[1725320880188,0.4828,59195.0,59194.0,0.49209004]
[1725320881185,0.122,59195.0,59194.0,0.76848035]
[1725320882993,0.122,59195.0,59194.0,0.85294456]
[1725320884198,0.122,59195.0,59194.0,0.278977]
[1725320885698,0.115,59195.0,59194.0,0.281977]
[1725320886397,0.11,59195.0,59194.0,0.283977]
[1725320888190,0.111,59195.0,59194.0,0.279977]
[1725320891085,0.111,59195.0,59194.0,0.49314333]
[1725320891900,0.111,59195.0,59194.0,0.36444121]
[1725320892500,0.111,59195.0,59194.0,0.36244121]
[1725320892699,0.111,59195.0,59194.0,0.36444121]
[1725320893701,0.111,59195.0,59194.0,0.279977]
[1725320894100,0.111,59195.0,59194.0,0.36444121]
[1725320894400,0.111,59195.0,59194.0,0.279977]
[1725320896699,0.111,59195.0,59194.0,0.36444121]
[1725320897908,0.111,59195.0,59194.0,0.279977]
[1725320900104,0.111,59195.0,59194.0,0.069977]
[1725320900310,0.178576,59195.0,59194.0,0.0024]
[1725320902506,0.111,59195.0,59194.0,0.0024]
[1725320905902,0.111,59195.0,59194.0,0.069977]
[1725320906811,0.4718,59195.0,59194.0,0.0024]
[1725320911415,0.111,59195.0,59194.0,0.0024]
[1725320912215,0.111,59195.0,59194.0,0.069977]
[1725320912808,0.111,59195.0,59194.0,0.2831455]
[1725320914222,0.111,59195.0,59194.0,0.15444121]
[1725320914421,0.111,59195.0,59194.0,0.28314562]
[1725320914625,0.111,59195.0,59194.0,0.15444121]
[1725320914921,0.001,59195.0,59194.0,0.2831445]
[1725320915111,0.001,59195.0,59194.0,0.19867631]
[1725320916117,0.001,59195.0,59194.0,0.31867631]
[1725320918311,0.4818,59195.0,59194.0,0.069977]
[1725320921417,0.001,59195.0,59194.0,0.069977]
[1725320926426,0.3618,59195.0,59194.0,0.069977]
[1725320931730,0.4818,59195.0,59194.0,0.069977]
[1725320938636,0.121,59195.0,59194.0,0.069977]
[1725320950436,0.121,59195.0,59194.0,0.15442995]
[1725320951136,0.121,59195.0,59194.0,0.069977]
[1725320952145,0.121,59195.0,59194.0,0.15442995]
[1725320952644,0.121,59195.0,59194.0,0.069977]
[1725320952840,0.121,59195.0,59194.0,0.15442995]
[1725320953643,0.121,59195.0,59194.0,0.28313517]
[1725320953837,0.121,59195.0,59194.0,0.15442995]
[1725320954642,0.121,59195.0,59194.0,0.2831361]
[1725320954944,0.121,59195.0,59194.0,0.15442995]
[1725320955346,0.121,59195.0,59194.0,0.28313473]
[1725320956155,0.121,59195.0,59194.0,0.15442995]
[1725320956455,0.121,59195.0,59194.0,0.069977]
[1725320957753,0.121,59195.0,59194.0,0.0024]
[1725320974364,0.121,59195.0,59194.0,0.06998352]
[1725320974657,0.121,59195.0,59194.0,0.0024]
[1725320977249,0.121,59195.0,59194.0,0.06998263]
[1725320978054,0.121,59195.0,59194.0,0.0024]
[1725320978356,0.121,59195.0,59194.0,0.06998233]
[1725320980662,0.121,59195.0,59194.0,0.06998393]
[1725320980962,0.121,59195.0,59194.0,0.0024]
[1725320981347,0.188576,59195.0,59194.0,0.06998417]
[1725320981853,0.188576,59195.0,59194.0,0.06998482]
[1725320982552,0.188576,59195.0,59194.0,0.0024]
[1725320982952,0.188576,59195.0,59194.0,0.06998459]
[1725320983751,0.188576,59195.0,59194.0,0.0024]
[1725320983960,0.188576,59195.0,59194.0,0.05309091]
[1725320983961,0.278576,59195.0,59194.0,0.05309091]
[1725320984161,0.278576,59195.0,59194.0,0.0024]
[1725320986564,0.188576,59195.0,59194.0,0.0024]
[1725320991266,0.278576,59195.0,59194.0,0.0024]
[1725320991657,0.639376,59195.0,59194.0,0.0024]
[1725320995259,1.000176,59195.0,59194.0,0.0024]
[1725320995763,1.00422895,59195.0,59194.0,0.0024]
[1725320999474,1.000176,59195.0,59194.0,0.0024]
[1725320999966,0.278576,59195.0,59194.0,0.0024]
[1725321000165,1.000176,59195.0,59194.0,0.0024]
[1725321003569,0.910176,59195.0,59194.0,0.0024]
[1725321003781,1.000176,59195.0,59194.0,0.0024]
[1725321011568,1.067752,59195.0,59194.0,0.0024]
[1725321011772,0.067577,59194.0,59188.0,0.0039]
[1725321011964,0.067577,59194.0,59185.0,0.00025344]
[1725321011965,0.067586,59186.0,59185.0,0.00415344]
[1725321012168,0.548786,59186.0,59185.0,0.00025344]
[1725321012369,0.638786,59186.0,59185.0,0.00025344]
[1725321012876,0.548786,59186.0,59185.0,0.00025344]
[1725321013177,0.549786,59186.0,59185.0,0.00725344]
[1725321013379,0.543786,59186.0,59185.0,0.00725344]
[1725321013678,0.1214,59186.0,59185.0,0.07484144]
[1725321014464,0.1214,59186.0,59185.0,0.08284144]
[1725321014465,0.1224,59186.0,59185.0,0.08284144]
[1725321018888,0.1224,59186.0,59185.0,0.15042699]
[1725321019086,0.1224,59186.0,59185.0,0.08284144]
[1725321020980,0.1224,59186.0,59185.0,0.15042699]
[1725321021476,0.1224,59186.0,59185.0,0.08284144]
[1725321021677,0.1224,59186.0,59185.0,0.15042699]
[1725321022172,0.1224,59186.0,59185.0,0.08284144]
[1725321022677,0.1224,59186.0,59185.0,0.01525344]
[1725321022871,0.2124,59186.0,59185.0,0.01525344]
[1725321025287,0.5732,59186.0,59185.0,0.01525344]
[1725321026776,0.5732,59186.0,59185.0,0.06590652]
[1725321027479,0.640786,59186.0,59185.0,0.06590652]
[1725321028988,0.640786,59186.0,59185.0,0.01525344]
[1725321030788,0.550786,59186.0,59185.0,0.01525344]
[1725321030983,0.550786,59186.0,59185.0,0.22349452]
[1725321032292,0.4832,59186.0,59185.0,0.17284144]
[1725321032489,0.3632,59186.0,59185.0,0.17284144]
[1725321032889,0.3632,59186.0,59185.0,0.29284144]
[1725321033099,0.3632,59186.0,59185.0,0.20284144]
[1725321033393,0.4732,59186.0,59185.0,0.27037683]
[1725321033787,0.4732,59186.0,59185.0,0.20284144]
[1725321034687,0.4732,59186.0,59185.0,0.08284144]
[1725321037189,0.5632,59186.0,59185.0,0.08280129]
[1725321038100,0.5632,59186.0,59185.0,0.01525344]
[1725321038301,0.4732,59186.0,59185.0,0.08280129]
[1725321038592,0.4732,59186.0,59185.0,0.01525344]
[1725321040793,0.1124,59186.0,59185.0,0.01525344]
[1725321042696,0.1124,59186.0,59185.0,0.08284144]
[1725321043092,0.1124,59186.0,59185.0,0.29602077]
[1725321043398,0.1124,59186.0,59185.0,0.16729439]
[1725321043903,0.1124,59186.0,59185.0,0.29602042]
[1725321044194,0.1124,59186.0,59185.0,0.16729439]
[1725321044897,0.1124,59186.0,59185.0,0.08284144]
[1725321045699,0.2024,59186.0,59185.0,0.08284144]
[1725321048994,0.2024,59186.0,59185.0,0.15041546]
[1725321049194,0.2024,59186.0,59185.0,0.08284144]
[1725321049396,0.2024,59186.0,59185.0,0.15041476]
[1725321049792,0.2024,59186.0,59185.0,0.08284144]
[1725321049990,0.630786,59186.0,59185.0,0.01525344]
[1725321050606,0.630786,59186.0,59185.0,0.06593562]
[1725321055793,1.137666,59186.0,59185.0,0.06593562]
[1725321056007,1.137666,59186.0,59185.0,0.01525344]
[1725321056904,0.540786,59186.0,59185.0,0.17282676]
[1725321057106,0.540786,59186.0,59185.0,0.17284144]
[1725321058209,0.4732,59186.0,59185.0,0.17284144]
[1725321063616,0.4732,59186.0,59182.0,0.0934]
[1725321063617,0.50688,59185.0,59182.0,0.05067552]
[1725321063803,0.50688,59185.0,59173.0,0.06756619]
[1725321063804,0.067591,59182.0,59173.0,0.06756619]
[1725321064005,0.8116,59174.0,59171.0,0.05069224]
[1725321064213,0.067605,59170.0,59168.0,0.05069224]
[1725321064413,0.4512,59169.0,59167.0,0.05069224]
[1725321064605,0.0004,59168.0,59167.0,0.05069224]
[1725321065113,0.11,59168.0,59165.0,0.05069224]
[1725321065314,0.09,59166.0,59164.0,0.05069224]
[1725321065612,0.217,59166.0,59164.0,0.05069224]
[1725321065912,0.35308,59169.0,59165.0,0.09]
[1725321066113,0.35308,59169.0,59168.0,0.0509989]
[1725321066303,0.3522,59169.0,59168.0,0.0509989]
[1725321066703,0.3532,59169.0,59168.0,0.0509989]
[1725321067510,0.690806,59169.0,59168.0,0.0004]
[1725321067705,1.797846,59169.0,59168.0,0.0004]
[1725321068519,1.198846,59169.0,59168.0,0.0004]
[1725321069908,1.266452,59169.0,59168.0,0.0004]
[1725321071024,0.759412,59169.0,59168.0,0.0004]
[1725321073210,0.76337486,59169.0,59168.0,0.0004]
[1725321074219,1.13277486,59169.0,59168.0,0.0004]
[1725321076023,0.41117486,59169.0,59168.0,0.0004]
[1725321076319,1.13277486,59169.0,59168.0,0.0004]
[1725321076822,1.14277486,59169.0,59168.0,0.0004]
[1725321077218,1.14977486,59169.0,59168.0,0.0004]
[1725321080129,0.42817486,59169.0,59168.0,0.0004]
[1725321080328,1.14977486,59169.0,59168.0,0.0004]
[1725321084127,0.135224,59164.0,59163.0,0.002]
[1725321084336,0.786024,59164.0,59163.0,0.002]
[1725321084634,0.786424,59164.0,59163.0,0.002]
[1725321085423,0.788424,59164.0,59163.0,0.002]
[1725321085621,0.788424,59164.0,59162.0,0.00025344]
[1725321085622,0.135226,59163.0,59162.0,0.00025344]
[1725321085825,0.245226,59163.0,59162.0,0.00025344]
[1725321087039,0.249226,59163.0,59162.0,0.00025344]
[1725321087335,0.250226,59163.0,59162.0,0.00025344]
[1725321089225,0.25426241,59163.0,59162.0,0.00025344]
[1725321092028,0.25506241,59163.0,59162.0,0.00025344]
[1725321093041,0.25506241,59163.0,59135.0,0.06745709]
[1725321093042,0.3608,59148.0,59135.0,0.06745709]
[1725321093228,0.3608,59148.0,59123.0,0.10117837]
[1725321093229,0.067662,59120.0,59114.0,0.04259671]
[1725321093438,0.067654,59128.0,59118.0,0.5208]
[1725321093743,0.067653,59128.0,59119.0,0.0906]
[1725321094126,0.16,59126.0,59119.0,0.0906]
[1725321094435,0.227656,59126.0,59119.0,0.0906]
[1725321095441,0.067656,59126.0,59119.0,0.0906]
[1725321095933,0.071656,59126.0,59119.0,0.0906]
[1725321096334,0.072656,59126.0,59119.0,0.0906]
[1725321096538,0.433456,59126.0,59119.0,0.0906]
[1725321098245,0.0039,59131.0,59130.0,0.06765]
[1725321098433,0.0039,59138.0,59130.0,0.5208]
[1725321098637,0.0039,59143.0,59140.0,0.16]
[1725321098840,0.3608,59147.0,59141.0,0.1691]
[1725321099043,0.4708,59147.0,59141.0,0.1691]
[1725321099433,0.4708,59147.0,59141.0,0.0491]
[1725321099840,0.538432,59147.0,59141.0,0.0491]
[1725321100345,0.545432,59147.0,59141.0,0.0491]
[1725321100744,0.549432,59147.0,59141.0,0.0491]
[1725321101839,0.549432,59147.0,59142.0,0.0461]
[1725321102339,0.067633,59146.0,59142.0,0.0461]
[1725321103145,0.3608,59145.0,59142.0,0.0461]
[1725321103444,0.538433,59145.0,59142.0,0.0461]
[1725321103855,0.067635,59144.0,59142.0,0.0461]
[1725321104037,0.187635,59144.0,59142.0,0.0461]
[1725321104649,0.12,59144.0,59142.0,0.0461]
[1725321104853,0.202935,59135.0,59123.0,0.06724277]
[1725321105143,0.067668,59115.0,59113.0,0.0462]
[1725321108046,0.068668,59115.0,59113.0,0.0462]
[1725321110350,0.001,59115.0,59114.0,0.16]
[1725321110649,0.001,59115.0,59114.0,0.735149]
[1725321111153,0.001,59115.0,59114.0,0.855149]
[1725321111745,0.00025367,59120.0,59116.0,0.067666]
[1725321112556,0.0008,59117.0,59116.0,0.067666]
[1725321114660,0.0028,59117.0,59116.0,0.067666]
[1725321115050,0.0028,59117.0,59116.0,0.575146]
[1725321115255,0.0028,59117.0,59116.0,1.175146]
[1725321115656,0.0028,59117.0,59116.0,0.575146]
[1725321118557,0.0028,59117.0,59116.0,0.57918997]
[1725321119165,0.0028,59117.0,59116.0,1.17918997]
[1725321119460,0.0028,59117.0,59116.0,0.57918997]
[1725321120060,0.00025367,59120.0,59119.0,0.067663]
[1725321120455,0.00025367,59120.0,59119.0,0.428463]
[1725321121273,0.00525367,59120.0,59119.0,0.428463]
[1725321121763,0.00725367,59120.0,59119.0,0.428463]
[1725321123557,0.00525367,59120.0,59119.0,0.428463]
[1725321124161,0.067665,59117.0,59116.0,0.00484397]
[1725321124361,0.11,59117.0,59116.0,0.0008]
[1725321124570,0.00125367,59120.0,59116.0,0.0008]
[1725321124865,0.13125367,59120.0,59116.0,0.0008]
[1725321125864,0.13025367,59120.0,59116.0,0.0008]
[1725321126071,0.13125367,59120.0,59116.0,0.0008]
[1725321127768,0.19891567,59120.0,59116.0,0.0008]
[1725321128775,0.067663,59119.0,59116.0,0.0008]
[1725321128967,0.197663,59119.0,59116.0,0.0008]
[1725321129370,0.13,59119.0,59116.0,0.0008]
[1725321129977,0.067665,59117.0,59116.0,0.0008]
[1725321130177,0.067665,59117.0,59116.0,0.1208]
[1725321131376,0.001,59117.0,59116.0,0.1208]
[1725321132779,0.001,59117.0,59116.0,0.188466]
[1725321134282,0.011,59117.0,59116.0,0.188466]
[1725321134480,0.001,59117.0,59116.0,0.188466]
[1725321134677,0.001,59117.0,59116.0,0.25568232]
[1725321134981,0.001,59117.0,59116.0,0.188466]
[1725321135481,0.001,59117.0,59116.0,0.25603921]
[1725321136071,0.001,59117.0,59116.0,0.188466]
[1725321138383,0.001,59117.0,59116.0,0.25604248]
[1725321139278,0.001,59117.0,59116.0,0.188466]
[1725321139478,0.001,59117.0,59116.0,0.233566]
[1725321139783,0.001,59117.0,59116.0,0.741046]
[1725321139975,0.001,59117.0,59116.0,1.341046]
[1725321140175,0.001,59117.0,59116.0,1.40862248]
[1725321140389,0.001,59117.0,59116.0,1.47628848]
[1725321140681,0.001,59117.0,59116.0,1.408712]
[1725321143881,0.00025367,59120.0,59119.0,0.135326]
[1725321144091,0.0046,59134.0,59126.0,0.067655]
[1725321144092,0.0039,59127.0,59126.0,0.067655]
[1725321144285,0.0039,59134.0,59131.0,0.067649]
[1725321144589,0.3608,59134.0,59133.0,0.0004]
[1725321145779,0.3608,59134.0,59133.0,0.068047]
[1725321146887,0.3888,59134.0,59133.0,0.068047]
[1725321148587,0.3888,59134.0,59133.0,0.07167626]
[1725321150877,0.3658,59134.0,59133.0,0.07167626]
[1725321151075,0.3698,59134.0,59133.0,0.07167626]
[1725321151580,0.3678,59134.0,59133.0,0.07167626]
[1725321153585,0.3698,59134.0,59133.0,0.07167626]
[1725321153891,0.3678,59134.0,59133.0,0.07167626]
[1725321154084,0.3708,59134.0,59133.0,0.07167626]
[1725321154479,0.3678,59134.0,59133.0,0.07167626]
[1725321154685,0.3718,59134.0,59133.0,0.07167626]
[1725321158093,0.011,59134.0,59133.0,0.07167626]
[1725321158291,0.3718,59134.0,59133.0,0.07167626]
[1725321162084,0.3718,59134.0,59133.0,0.07300626]
[1725321164981,0.011,59134.0,59133.0,0.07300626]
[1725321172705,0.011,59134.0,59133.0,0.23300626]
[1725321177899,0.011,59134.0,59133.0,0.16300626]
[1725321185419,0.011,59134.0,59133.0,0.94112626]
[1725321185706,0.011,59134.0,59133.0,1.03112626]
[1725321185911,0.011,59134.0,59133.0,1.15112626]
[1725321186309,0.011,59134.0,59133.0,1.14979626]
[1725321190108,0.011,59134.0,59133.0,0.64247626]
[1725321191311,0.011,59134.0,59133.0,1.74979626]
[1725321191619,0.011,59134.0,59133.0,1.38899626]
[1725321191920,0.091,59134.0,59133.0,0.00402926]
[1725321192110,0.158646,59134.0,59133.0,0.00402926]
[1725321195719,0.165646,59134.0,59133.0,0.00402926]
[1725321196223,0.171646,59134.0,59133.0,0.00402926]
[1725321196722,0.158646,59134.0,59133.0,0.00402926]
[1725321196926,0.172646,59134.0,59133.0,0.00402926]
[1725321198325,0.172646,59134.0,59133.0,0.09402926]
[1725321198516,0.172646,59134.0,59133.0,0.00402926]
[1725321198717,0.172646,59134.0,59133.0,0.09402926]
[1725321199019,0.174646,59134.0,59133.0,0.09402926]
[1725321199223,0.160646,59134.0,59133.0,0.09402926]
[1725321199418,0.173646,59134.0,59133.0,0.09402926]
[1725321199825,0.895246,59134.0,59133.0,0.09402926]
[1725321200622,0.895246,59134.0,59133.0,0.09535926]
[1725321201419,0.896246,59134.0,59133.0,0.00535926]
[1725321204313,0.897246,59134.0,59133.0,0.00535926]
[1725321204920,0.894246,59134.0,59133.0,0.00535926]
[1725321205327,0.883246,59134.0,59133.0,0.00535926]
[1725321205622,0.894246,59134.0,59133.0,0.00535926]
[1725321206816,0.893246,59134.0,59133.0,0.00535926]
[1725321209919,0.880246,59134.0,59133.0,0.00535926]
[1725321210125,0.891246,59134.0,59133.0,0.00535926]
[1725321210719,0.880246,59134.0,59133.0,0.00535926]
[1725321210919,0.892246,59134.0,59133.0,0.00535926]
[1725321211119,0.891246,59134.0,59133.0,0.00535926]
[1725321211722,0.892246,59134.0,59133.0,0.00535926]
[1725321212931,0.893246,59134.0,59133.0,0.00535926]
[1725321213328,0.893246,59134.0,59133.0,0.09535926]
[1725321218439,0.8256,59134.0,59133.0,0.16300626]
[1725321218631,0.7456,59134.0,59133.0,0.16300626]
[1725321219434,0.7456,59134.0,59133.0,0.21180626]
[1725321220127,0.7456,59134.0,59133.0,0.25800626]
[1725321220532,0.7456,59134.0,59133.0,0.30865908]
[1725321221246,0.3848,59134.0,59133.0,0.25800626]
[1725321221739,0.024,59134.0,59133.0,0.68641033]
[1725321222138,0.024,59134.0,59133.0,0.61880626]
[1725321222445,0.024,59134.0,59133.0,0.68638293]
[1725321222940,0.024,59134.0,59133.0,0.61880626]
[1725321223539,0.00025367,59139.0,59138.0,0.067641]
[1725321223844,0.00025367,59139.0,59138.0,0.32870665]
[1725321224343,0.00025367,59139.0,59138.0,0.278041]
[1725321224947,0.01425367,59139.0,59138.0,0.278041]
[1725321225339,0.02825367,59139.0,59138.0,0.279041]
[1725321229338,0.02825367,59139.0,59138.0,0.32964899]
[1725321231150,0.02825367,59139.0,59138.0,0.279041]
[1725321233855,0.02825367,59139.0,59138.0,0.639841]
[1725321234849,0.02825367,59139.0,59138.0,0.69044899]
[1725321235055,0.02825367,59139.0,59138.0,0.639841]
[1725321236049,0.02825367,59139.0,59138.0,0.69044899]
[1725321236555,0.02825367,59139.0,59138.0,0.639841]
[1725321236759,0.02825367,59139.0,59138.0,0.69044899]
[1725321239247,0.02825367,59139.0,59138.0,0.32964899]
[1725321239449,0.02825367,59139.0,59138.0,0.279041]
[1725321240243,0.02825367,59139.0,59138.0,0.32962736]
[1725321240447,0.02825367,59139.0,59138.0,0.279041]
[1725321241151,0.02825367,59139.0,59138.0,0.280371]
[1725321244864,0.02825367,59139.0,59138.0,0.160371]
[1725321247357,0.02825367,59139.0,59138.0,0.521171]
[1725321248260,0.02825367,59139.0,59138.0,0.160371]
[1725321249463,0.02825367,59139.0,59138.0,0.21096161]
[1725321250961,0.02825367,59139.0,59138.0,0.21107221]
[1725321251366,0.02825367,59139.0,59138.0,0.160371]
[1725321257265,0.02825367,59139.0,59138.0,0.070371]
[1725321257669,0.02825367,59139.0,59138.0,0.160371]
[1725321259666,0.02825367,59139.0,59138.0,0.070371]
[1725321259867,0.02825367,59139.0,59138.0,0.160371]
[1725321260071,0.02825367,59139.0,59138.0,0.070371]
[1725321260372,0.02825367,59139.0,59138.0,0.160371]
[1725321262059,0.02825367,59139.0,59138.0,0.21108764]
[1725321262968,0.02825367,59139.0,59138.0,0.20975764]
[1725321263576,0.02825367,59139.0,59138.0,0.159041]
[1725321264074,0.02825367,59139.0,59138.0,0.20975612]
[1725321265575,0.02825367,59139.0,59138.0,0.159041]
[1725321269572,0.0039,59146.0,59138.0,0.519841]
[1725321269773,0.0039,59149.0,59148.0,0.06763]
[1725321269980,0.3608,59150.0,59149.0,0.157629]
[1725321271574,0.3748,59150.0,59149.0,0.158629]
[1725321271975,0.3788,59150.0,59149.0,0.159629]
[1725321275176,0.3788,59150.0,59149.0,0.16323875]
[1725321276483,0.3788,59150.0,59149.0,0.21390989]
[1725321276881,0.3658,59150.0,59149.0,0.21390989]
[1725321277380,0.3658,59150.0,59149.0,0.21523989]
[1725321277582,0.005,59150.0,59149.0,0.21523989]
[1725321278487,0.005,59150.0,59149.0,0.16456875]
[1725321280086,0.005,59150.0,59149.0,0.21523989]
[1725321281588,0.005,59150.0,59149.0,0.16456875]
[1725321282789,0.005,59150.0,59149.0,0.21523989]
[1725321283085,0.3608,59154.0,59153.0,0.067624]
[1725321283288,0.3608,59154.0,59153.0,0.158024]
[1725321284585,0.3618,59154.0,59153.0,0.159024]
[1725321284988,0.001,59154.0,59153.0,0.159024]
[1725321285784,0.001,59154.0,59153.0,0.519824]
[1725321285982,0.001,59154.0,59153.0,0.160024]
[1725321292898,0.001,59154.0,59153.0,0.0924]
[1725321300612,0.068623,59154.0,59153.0,0.0024]
[1725321300814,0.068623,59154.0,59153.0,0.0924]
[1725321302313,0.188623,59154.0,59153.0,0.0924]
[1725321304215,0.549423,59154.0,59153.0,0.0924]
[1725321307319,0.429423,59154.0,59153.0,0.0924]
[1725321314007,0.429423,59154.0,59153.0,0.09373]
[1725321314207,0.068623,59154.0,59153.0,0.09373]
[1725321314423,0.429423,59154.0,59153.0,0.09373]
[1725321314621,0.429423,59154.0,59153.0,0.14434329]
[1725321315611,0.428423,59154.0,59153.0,0.14334329]
[1725321316008,0.428423,59154.0,59153.0,0.05343433]
[1725321316213,0.558423,59154.0,59153.0,0.00273]
[1725321317216,0.559423,59154.0,59153.0,0.00273]
[1725321317817,0.559423,59154.0,59153.0,0.00373]
[1725321318423,0.559423,59154.0,59153.0,0.00273]
[1725321318611,0.559423,59154.0,59153.0,0.00373]
[1725321319220,0.559423,59154.0,59153.0,0.00273]
[1725321319419,0.559423,59154.0,59153.0,0.00373]
[1725321323227,0.131,59154.0,59153.0,0.00373]
[1725321323533,0.001,59154.0,59153.0,0.17075833]
[1725321323725,0.001,59154.0,59153.0,0.120054]
[1725321323920,0.001,59154.0,59153.0,0.240054]
[1725321324726,0.001,59154.0,59153.0,0.239054]
[1725321324922,0.00025367,59155.0,59153.0,0.238054]
[1725321325121,0.001,59154.0,59153.0,0.238054]
[1725321325323,0.001,59154.0,59153.0,0.05003]
[1725321325528,0.538423,59154.0,59153.0,0.00133]
[1725321325728,0.538423,59154.0,59153.0,0.00233]
[1725321327229,0.538423,59154.0,59153.0,0.00133]
[1725321327528,0.539423,59154.0,59153.0,0.00133]
[1725321329827,0.178623,59154.0,59153.0,0.00133]
[1725321330130,0.900223,59154.0,59153.0,0.00133]
[1725321330726,0.202884,59150.0,59136.0,0.08450722]
[1725321331028,0.067662,59120.0,59119.0,0.0004]
[1725321331229,0.428862,59120.0,59119.0,0.0004]
[1725321332034,0.067664,59119.0,59116.0,0.0908]
[1725321332330,0.0004,59117.0,59116.0,0.0908]
[1725321332631,0.067064,59119.0,59116.0,0.0908]
[1725321332829,0.067064,59119.0,59118.0,0.0004]
[1725321335735,0.067064,59119.0,59118.0,0.0034]
[1725321336836,0.067064,59119.0,59118.0,0.0014]
[1725321341227,0.167064,59119.0,59118.0,0.0014]
[1725321342334,0.888664,59119.0,59118.0,0.0014]
[1725321344535,0.167064,59119.0,59118.0,0.0014]
[1725321344733,0.888664,59119.0,59118.0,0.0014]
[1725321349242,0.888664,59119.0,59118.0,0.1214]
[1725321349539,0.888664,59119.0,59118.0,0.12273]
[1725321353748,0.00025367,59125.0,59124.0,0.067657]
[1725321354041,0.36196,59129.0,59128.0,0.067653]
[1725321354245,0.3608,59129.0,59128.0,0.228053]
[1725321354644,0.3608,59129.0,59128.0,0.348053]
[1725321355342,0.00025367,59134.0,59133.0,0.067647]
[1725321355547,0.00025367,59134.0,59133.0,0.228047]
[1725321355941,0.00025367,59134.0,59133.0,0.158047]